Cogmind - Beta 16 @@@ ROGUE MODE // 2025.12.13 @ 16:42:28 Player: The Overplayer Result: Destroyed by O3-FHQ(R) with Subdweller Machine Gun Performance ------------- Evolutions (0) 0 Regions Visited (2) 400 Robots Destroyed (11) 55 Value Destroyed (311) 311 Prototype IDs (0) 0 Alien Tech Used (0) 0 Bonus (0) 0 TOTAL SCORE: 766 Bonus ------- None Cogmind --------- Core Integrity 0/250 Matter 300/300 Energy 116/125 System Corruption 0% Temperature Cool (0) Movement Treading (160) Location -10/Subcaves Parts ------- > --- POWER (1) -------- Light Ion Engine > --- PROPULSION (2) --- Spiked Treads > --- UTILITY (2) ------ Small Storage Unit Structural Scanner > --- WEAPON (2) ------- Subdweller Laser Subdweller Laser > --- INVENTORY (8) ---- Subdweller Power Source Improved Heat Sink Improved Terrain Scanner Seismic Detector Subdweller Laser Battle Rifle Multitool Peak State ------------ > --- POWER ------------ Light Ion Engine > --- PROPULSION ------- Spiked Treads Aluminum Leg > --- UTILITY ---------- Small Storage Unit Structural Scanner > --- WEAPON ----------- Subdweller Laser Subdweller Laser > --- INVENTORY -------- Subdweller Power Source Improved Heat Sink Improved Terrain Scanner Seismic Detector Subdweller Laser Battle Rifle Multitool [Rating: 11] Favorites ----------- Power Light Ion Engine Engine Light Ion Engine Propulsion Aluminum Leg Treads Spiked Treads Leg Aluminum Leg Utility Small Storage Unit Device Structural Scanner Storage Small Storage Unit Weapon Subdweller Laser Energy Gun Subdweller Laser Ballistic Gun Assault Rifle Build | -11 -10 -10 ------- Run | Yrd Mat Sub Slots Evolved . | . . . Power . | . . . Propulsion . | . . . Utility . | . . . Weapon . | . . . Parts Attached 20 | 7 3 10 Power 4 | 1 . 3 Engine 4 | 1 . 3 Core . | . . . Reactor . | . . . Propulsion 6 | 2 2 2 Treads 1 | . . 1 Leg 5 | 2 2 1 Wheel . | . . . Hover . | . . . Flight . | . . . Utility 3 | 2 1 . Device 2 | 1 1 . Storage 1 | 1 . . Processor . | . . . Hackware . | . . . Protection . | . . . Artifact . | . . . Weapon 7 | 2 . 5 Energy Gun 4 | 1 . 3 Energy Cannon . | . . . Ballistic Gun 3 | 1 . 2 Ballistic Cannon . | . . . Launcher . | . . . Special Weapon . | . . . Impact Weapon . | . . . Slashing Weapon . | . . . Piercing Weapon . | . . . Special Melee Weapon . | . . . Unidentified Prototypes . | . . . Parts Lost 3 | . . 3 Power . | . . . Propulsion 2 | . . 2 Utility . | . . . Weapon 1 | . . 1 Highest Loss Streak 1 | . . 1 To Critical Strikes . | . . . Average Backups 6 | 1 4 7 Power . | . 1 . Propulsion 1 | . . 1 Utility 2 | . 1 2 Weapon 1 | . 1 1 Tool/Special . | . . . Unused Backups 6 | . . 6 Power 1 | . . 1 Propulsion . | . . . Utility 2 | . . 2 Weapon 2 | . . 2 Tool/Special 1 | . . 1 Average Slot Usage (%) 98 | . 97 98 Engine 14 | . 14 14 Treads 1 | . . 1 Leg 25 | . 27 25 Device 14 | . 14 14 Storage 14 | . 14 14 Energy Gun 18 | . 13 18 Ballistic Gun 9 | . 13 9 Peak Build Rating 11 | 9 9 11 Average Rating 8 | 6 6 9 On Entrance 5 | . 9 7 Avg Prop Armor Cover (%) . | . . . Naked Turns . | . . . Heaviest Build 17 | 13 13 17 Greatest Support 20 | 20 20 20 Greatest Overweight (x) 1 | . 1 1 Average Overweight (x) . | . . . Largest Inventory Capacity 8 | 8 8 8 Average Capacity 7 | 7 8 8 Most Carried 8 | 3 6 8 Average Carried 6 | 1 4 7 Final Capacity 8 | 8 8 8 Final Carried 7 | 3 6 7 Class Distribution -------------------- 100% | Mutant Dominant Class ---------------- Mutant | -10/Materials Mutant | -10/Subcaves Resources | -11 -10 -10 ----------- Run | Yrd Mat Sub Matter Collected 566 | 175 19 372 Remotely . | . . . Salvage Created 450 | 96 . 354 Parts 22 | 8 . 14 Haulers Intercepted . | . . . Recyclers Shooed . | . . . Parts Field Recycled . | . . . Retrieved Matter . | . . . Parts Self-Destructed 16 | . . 16 Prevented . | . . . Parts Restored . | . . . Kills | -11 -10 -10 ------- Run | Yrd Mat Sub Combat Hostiles Destroyed 8 | . . 8 Guns 8 | . . 8 Classes Destroyed 5 | 2 . 3 Tunneler 2 | 2 . . Recycler 1 | 1 . . Swarmer 1 | . . 1 Grunt 2 | . . 2 Subdweller 5 | . . 5 Best Kill Streak 2 | 2 . 2 Combat Bots Only 2 | . . 2 Max Kills in Single Turn 1 | 1 . 1 Gunslinging . | . . . Exploded . | . . . Melee . | . . . Uniques/NPCs Destroyed . | . . . Combat | -11 -10 -10 -------- Run | Yrd Mat Sub Hostile Shots Fired 80 | . . 80 Missed 26 | . . 26 Hits 54 | . . 54 Projectile 54 | . . 54 Damage Taken 1078 | . . 1078 Core 266 | . . 266 Absorbed by Shields . | . . . Core Remaining (%) 100 | 100 . . Volleys Fired 75 | 22 . 53 Largest 2 | 1 . 2 Hottest 120 | 40 . 120 Shots Fired 123 | 22 . 101 Gun 123 | 22 . 101 Cannon . | . . . Launcher . | . . . Special . | . . . Kinetic 28 | . . 28 Thermal 95 | 22 . 73 Explosive . | . . . Electromagnetic . | . . . Robot Hit Streak 19 | 5 . 19 Robot Miss Streak 2 | 1 . 2 Penetration Max . | . . . Secondary Targets . | . . . Shots Hit Robots 78 | 16 . 62 Core Hits 21 | 4 . 17 Critical Kills . | . . . Critical Parts Destroyed 1 | . . 1 Critical Strikes 3 | . . 3 Destroy 3 | . . 3 Melee Attacks . | . . . Impact . | . . . Slashing . | . . . Piercing . | . . . Sneak Attacks . | . . . Combat Hostiles . | . . . Follow-up Attacks . | . . . Damage Inflicted 1123 | 178 . 945 Guns 1123 | 178 . 945 Cannons . | . . . Explosions . | . . . Melee . | . . . Ramming . | . . . Kinetic 261 | . . 261 Thermal 862 | 178 . 684 Explosive . | . . . Electromagnetic . | . . . Impact . | . . . Slashing . | . . . Piercing . | . . . Highest Corruption . | . . . Average Corruption . | . . . Corruption Purged . | . . . Corruption Blocked . | . . . Overload Shots . | . . . Overflow Damage . | . . . Projectiles . | . . . Explosions . | . . . Melee . | . . . Knockbacks . | . . . Impact . | . . . Kinetic . | . . . Secondary . | . . . Self-Inflicted Damage . | . . . Shots . | . . . Rammed . | . . . Targets Rammed . | . . . Kicked . | . . . Crushed . | . . . Highest Temperature 36 | . . 36 Average Temperature 19 | . . 19 Received Heat Transfer 213 | . . 213 Siege Activations . | . . . Martial Activations . | . . . Shielding Activations . | . . . Robots Disrupted . | . . . Combat Hostiles . | . . . Robots Corrupted . | . . . Combat Hostiles . | . . . Parts Fried . | . . . Impact Corruptions . | . . . Robots Melted . | . . . Combat Hostiles . | . . . Parts Melted 1 | . . 1 Heat Transferred 1425 | 400 . 1025 Parts Sabotaged . | . . . Parts Stolen . | . . . Parts Stripped . | . . . Power Chain Reactions . | . . . Alert | -11 -10 -10 ------- Run | Yrd Mat Sub Maximum Alert Level . | . . . Low Security (%) 100 | 100 100 . Level 1 . | . . . Level 2 . | . . . Level 3 . | . . . Level 4 . | . . . Level 5 . | . . . High Security . | . . . Max Security . | . . . Peak Influence 10 | 10 3 . Initial 3 | . 3 . Average . | 1 . . Influence Increases 115 | 15 . 100 Destroy 0b10 Robot/C 60 | . . 60 Destroy 0b10 Robot/NC 15 | 15 . . Destroy Leader 10 | . . 10 Lose Combat Pursuer 30 | . . 30 Influence Decreases 115 | 10 5 100 Entered New Map 2 | . 2 . Time Decay 103 | 10 3 90 Lost Part 10 | . . 10 Squads Dispatched 1 | . 1 . Investigation . | . . . Extermination . | . . . Reinforcement 1 | . 1 . Assault . | . . . Garrison . | . . . Intercept . | . . . Searches Triggered . | . . . Construction Impeded . | . . . Haulers Reinforced . | . . . Active Scanning Responses . | . . . Cargo Convoy Interrupts . | . . . Stealth | -11 -10 -10 --------- Run | Yrd Mat Sub Distress Signals . | . . . Communications Jammed . | . . . Distress Signals . | . . . Times Spotted 18 | . 5 13 Peak Tracking Total 3 | . 3 3 Tactical Retreats 1 | . . 1 Traps | -11 -10 -10 ------- Run | Yrd Mat Sub Traps Triggered 2 | . 2 . Indirectly . | . . . Trap Hack Attempts . | . . . Triggered . | . . . Disarmed . | . . . Reprogrammed . | . . . Reused . | . . . Traps Extracted . | . . . Installed . | . . . Triggered . | . . . Machines | -11 -10 -10 ---------- Run | Yrd Mat Sub Machines Disabled . | . . . Max in Single Turn . | . . . Machines Repaired . | . . . Machines Dismantled . | . . . Machines Sabotaged . | . . . Overloaded Fab Kills . | . . . Hacking | -11 -10 -10 --------- Run | Yrd Mat Sub Machines Accessed 7 | . 4 3 Terminals 2 | . 2 . Fabricators . | . . . Repair Stations 1 | . 1 . Recycling Units 1 | . 1 . Scanalyzers . | . . . Garrison Access . | . . . Total Hacks 15 | . 8 7 Successful 13 | . 6 7 Failed 2 | . 2 . Catastrophic . | . . . Database Lockouts . | . . . Manual 3 | . 3 . Terminals 5 | . 5 . Fabricators . | . . . Repair Stations 1 | . 1 . Recycling Units 2 | . 2 . Scanalyzers . | . . . Garrison Access . | . . . Terminal Hacks 10 | . 3 7 Record 5 | . . 5 Open Door 1 | . . 1 Terminal Index 1 | . 1 . Hauler Manifests 1 | . 1 . Registered Components 1 | . 1 . Release Object 1 | . . 1 Fabricator Hacks . | . . . Repair Station Hacks . | . . . Recycling Unit Hacks 2 | . 2 . Report Inventory 1 | . 1 . Retrieve Components 1 | . 1 . Scanalyzer . | . . . Garrison Access Hacks . | . . . Unauthorized Hacks 1 | . 1 . Terminals . | . . . Fabricators . | . . . Repair Stations 1 | . 1 . Mechanics 1 | . 1 . Recycling Units . | . . . Scanalyzers . | . . . Garrison Access . | . . . Data Cores Recovered . | . . . Used . | . . . Hacking Detections 2 | . 2 . Full Trace Events 1 | . 1 . Feedback Events . | . . . Feedback Blocked . | . . . Robot Schematics Acquired . | . . . Robots Built . | . . . Authchips . | . . . Time . | . . . Total Robot Build Rating . | . . . Part Schematics Acquired . | . . . Parts Built . | . . . Authchips . | . . . Time . | . . . Total Part Build Rating . | . . . Part Studies Acquired . | . . . Parts Repaired . | . . . Time . | . . . Parts Recycled . | . . . Recycled Matter . | . . . Retrieved Matter . | . . . Retrieved Components 3 | . 3 . Parts Scanalyzed . | . . . Part Schematics Acquired . | . . . Parts Damaged . | . . . Bothacking | -11 -10 -10 ------------ Run | Yrd Mat Sub Used RIF Installer . | . . . Robots Hacked . | . . . Non-combat . | . . . Combat . | . . . Robot Hacks Applied . | . . . Relay Couplers Released . | . . . Fabnet Peak Effective % . | . . . Robots Rewired . | . . . Allies Hacked . | . . . Hacks Repelled . | . . . Allies | -11 -10 -10 -------- Run | Yrd Mat Sub Total Allies . | . . . Largest Group . | . . . Highest-Rated Group . | . . . Highest-Rated Ally . | . . . Total Orders . | . . . Ally Attacks . | . . . Total Damage . | . . . Kills . | . . . Allies Corrupted . | . . . Allies Melted . | . . . Intel | -11 -10 -10 ------- Run | Yrd Mat Sub Active Infowar (turns) 1855 | 64 171 1620 Terrain 75 | 64 11 . Structural 1780 | . 160 1620 Robot Analysis Total . | . . . Derelict Logs Recovered . | . . . Drone Launches . | . . . Drone Recoveries . | . . . Exploration | -11 -10 -10 ------------- Run | Yrd Mat Sub Turns Passed 1930 | 138 172 1620 Spaces Moved 1324 | 70 130 1124 Core 5 | 5 . . Treads 85 | . . 85 Legs 1234 | 65 130 1039 Wheels . | . . . Hover . | . . . Flight . | . . . Fastest Speed 50 | 50 120 120 Average Speed 122 | 115 121 123 Slowest Speed 190 | 120 190 190 Overloaded Moves . | . . . Propulsion Burnouts . | . . . Robots Hopped 1 | . 1 . Potential Cave-ins . | . . . Cave-ins Triggered . | . . . Exploration Rate (%) 29 | 5 35 48 Regions Visited 2 Branch Regions 1 Pre-discovered Areas 1 | . . 1 Known Exits Taken . | . . . Unknown Exits Taken 2 | 1 1 . Scrap Searched . | . . . Spaces Dug . | . . . Terrain Destroyed . | . . . Melee . | . . . Projectile . | . . . AOE . | . . . Terrain Rammed . | . . . Walls Destroyed . | . . . Machines Disabled . | . . . Actions | -11 -10 -10 --------- Run | Yrd Mat Sub Total 1502 | 102 139 1261 Wait 51 | . 1 50 Move 1320 | 69 127 1124 Hop 1 | . 1 . Pick Up 11 | 4 . 7 Fast Attach 17 | 6 7 4 Attach 4 | 1 . 3 Detach 1 | . 1 . Swap 10 | . 2 8 Drop 11 | . . 11 Fire 75 | 22 . 53 Melee . | . . . Ram . | . . . Kick . | . . . Crush . | . . . Escape Stasis . | . . . Rewire . | . . . Trap . | . . . Miscellaneous 1 | . . 1 Route ------- -11/Scrapyard -10/Materials (discovered 3 exits: [*Mat] / [*Min] / *Sub) -10/Subcaves (discovered 3 exits: [*Mat x2] / [*Scr]) History --------- Turn | Location | Event 41 | -11/Scrapyard | Discovered new exit (range 16) 139 | -11/Scrapyard | Entered Materials 140 | -10/Materials | Met a group of wandering Federalists 217 | -10/Materials | Discovered new exit (range 11) 235 | -10/Materials | Discovered new exit (range 12) 290 | -10/Materials | Discovered new exit (range 13) 310 | -10/Materials | Build established: Mutant 311 | -10/Materials | Entered Subcaves 311 | -10/Subcaves | Accompanied by 1 ally 312 | -10/Subcaves | Ambushed by Subdwellers from Twisted Machinery 312 | -10/Subcaves | Continued accompanying wandering Federalists (4) 312 | -10/Subcaves | Approached by a straggling Scientist 319 | -10/Subcaves | Discovered new exit (range 7) 361 | -10/Subcaves | Lost 3 allies 361 | -10/Subcaves | Released subatomizers from SUBCON Basin 484 | -10/Subcaves | Shifting Twisted Machinery released Sub. Monowheel 488 | -10/Subcaves | Discovered new exit (range 11) 532 | -10/Subcaves | Shifting Twisted Machinery released Mak. Flight Unit 695 | -10/Subcaves | Core integrity fell below 50% 897 | -10/Subcaves | Visited Clippyterm 900 | -10/Subcaves | Learned 40 Factory zone layouts 900 | -10/Subcaves | Learned location of Extension (-6) 1342 | -10/Subcaves | Shifting Twisted Machinery released Sub. Laser 1470 | -10/Subcaves | Core integrity fell below 20% 1762 | -10/Subcaves | Shifting Twisted Machinery released Spk. Treads 1931 | -10/Subcaves | Destroyed by O3-FHQ(R) with Subdweller Machine Gun Last Messages --------------- 01719_ Aluminum Leg destroyed. 01723_ Particle Gun fries itself beyond repair. 01724_ G-34 Mercenary suffers critical hit (Destroy). 01724_ Destroyed Ion Engine. 01724_ G-34 Mercenary destroyed. 01730_ Lgt. Nuclear Core fries itself beyond repair. 01734_ Acquired 10 matter. Spk. Treads falls loose from the Twisted Machinery. 01773_ Dropped Aluminum Leg. 01773_ Acquired Spk. Treads. 01775_ Dropped Aluminum Leg. 01872_ Subatomizers dissect the Sub. Monowheel. 01897_ Acquired 10 matter. 01918_ Subatomizers dissect the Sub. Monowheel. 01923_ Sub. Laser shoots sparks and powers down. 01928_ Subatomizers dissect the Sub. Monowheel. Map ----- +----------------------------------------------------+ | ?????###### ####### #### | | ?????###### #### ### < ###### | | ?????## ## ### # ## ### | | ?????### ###### ## ### ### " | | ?????### ##?####### #### #"" | | ??????## ###???###### ####### "" | | ??????##"" ## ####?########## ####### #### | | ?????###" ## ####### #### ############ | | ?????## " " ##### ## ## # #" ""## | | ?????#### " *% ##[ """""""" | | ?????###""""" # """"""" " | | ??????## #### % ## #""####" "= | | ??????## #### #### ## """###""""= | | ??????## ## ## ##### % ### # "#### | | ??????## ######### ## ###### | | ??????## ?? ###### # ####### | | ??????### ?## "#### # # #####??## | | ??????#####"?### " ## % ##########???### | | ????????####?###" ## ############?????#### | | ???????????#### " " ######????????????### | | ???????????#####[ " ##?????????????????## | | ???????????## ##*%= ##?????????????????## | | ??????????### = ## ##??????????????????# | | ?????????#### ##### ###?????????????????? | | ????????#### ###### * !###?????????????????? | | ???????#### ##?####@R% ##?????????????????? | | ???????### ########## ""###??????###???????? | | ???????## ## ###### ""## ##???????? | | ???????## ##?## " ##???????? | | ???????## ## ##?## ###???????? | | ???????### #### ##?### ""##????????? | | ???????### #### ##?###""" """ "" "#????????? | | ????????## ### ##??###"""""" " ??????????? | | ???????### ###?? ## "" ???????????? | | ??????#### ######??? " " ????????????? | | ??????### ######?????? "###"????????????? | | ??????## ## ####????????? ""####????????????? | | ?????#### ########?????????#"""""##??????????????? | | ?????#### #######??????????##"???????????????????? | | ?????## ##??????????????###???????????????????? | | ?????## ##????????????????????????????????????? | | ?????## ##????????????????????????????????????? | | ?????## ##????????????????????????????????????? | | ?????### ##????????????????????????????????????? | | ?????### ##????????????????????????????????????? | | ??????### ###????????????????????????????????????? | | ??????#######????????????????????????????????????? | | ???????#####?????????????????????????????????????? | | ?????????????????????????????????????????????????? | | ?????????????????????????????????????????????????? | +----------------------------------------------------+ Best States ------------- Heat Dissipation 25 Energy Generation 15 Energy Capacity 250 Matter Stores 300 Matter Capacity 300 Sight Range 16 Terrain Scan Range 16 Terrain Scan Density 10 Evasion (%) 55 Recoil Reduction 1 Item Schematics ----------------- None Robot Schematics ------------------ None Fabricated ------------ Nothing Repaired ---------- Nothing Studied --------- None Alien Tech Used ----------------- None Achievements -------------- Strength In Numbers Challenges ------------ None Game ------ Seed SensorFieldHammerchucker Manual? 0 Play Time 00:14:05 Cumulative 49.8 hours Start 2025.12.13 @ 16:27:58 End 2025.12.13 @ 16:42:28 Sessions 1 Manual Loads 0 Difficulty Rogue Special Mode None Game No. 49 Rogue 49 Adventurer 0 Explorer 0 Win Type - Total 0 Types 0/0/0/0/0/0/0/0/0/0 Lore% 20 Gallery% 41 Achievement% 31 Wizard Run 0 Options --------- Layout 1 ASCII 0 Keyboard 0 Movement Mouse Keybinds 0 Fullscreen 1 Font 24/Smallcaps Map View 50x35 Zoom Use 0% Tactical HUD 1 Map Filters NONE Filters NONE Steam 1 RUN: d2b90503-2157-47ac-a3a5-b4c25cf18020